Cogmind - Beta 11.1 @@@ ROGUE MODE // 2022.11.08 @ 23:40:15 Player: darki Result: Destroyed by S-10 Pest with Light Assault Rifle Performance ------------- Evolutions (0) 0 Regions Visited (2) 400 Robots Destroyed (18) 90 Value Destroyed (374) 374 Prototype IDs (0) 0 Alien Tech Used (0) 0 Bonus (0) 0 TOTAL SCORE: 864 Bonus ------- None Cogmind --------- Core Integrity 0/250 Matter 253/300 Energy 125/125 System Corruption 0% Temperature Cool (0) Movement Treading (160) Location -10/Mines Parts ------- > --- POWER (1) -------- Light Ion Engine > --- PROPULSION (2) --- Light Treads Light Treads > --- UTILITY (2) ------ Small Storage Unit > --- WEAPON (2) ------- Assault Rifle Light Assault Rifle > --- INVENTORY (8) ---- Light Ion Engine Light Ion Engine Wheel Compact Wheel EM Pulse Gun Light Assault Rifle Peak State ------------ > --- POWER ------------ Ion Engine > --- PROPULSION ------- Aluminum Leg Aluminum Leg > --- UTILITY ---------- Small Storage Unit > --- WEAPON ----------- EM Pulse Gun Light Assault Rifle > --- INVENTORY -------- Light Ion Engine Light Treads Light Treads Wheel Compact Wheel Light Assault Rifle [Rating: 6] Favorites ----------- Power Light Ion Engine Engine Light Ion Engine Propulsion Light Treads Treads Light Treads Leg Aluminum Leg Utility Small Storage Unit Storage Small Storage Unit Weapon Light Assault Rifle Energy Gun EM Pulse Gun Ballistic Gun Light Assault Rifle Build | -11 -10 -10 ------- Run | Scr Mat Min Slots Evolved . | . . . Power . | . . . Propulsion . | . . . Utility . | . . . Weapon . | . . . Parts Attached 7 | . 5 2 Power 2 | . 1 1 Engine 2 | . 1 1 Core . | . . . Reactor . | . . . Propulsion 2 | . 2 . Treads 2 | . 2 . Leg . | . . . Wheel . | . . . Hover . | . . . Flight . | . . . Utility . | . . . Device . | . . . Storage . | . . . Processor . | . . . Hackware . | . . . Protection . | . . . Artifact . | . . . Weapon 3 | . 2 1 Energy Gun . | . . . Energy Cannon . | . . . Ballistic Gun 3 | . 2 1 Ballistic Cannon . | . . . Launcher . | . . . Special Weapon . | . . . Impact Weapon . | . . . Slashing Weapon . | . . . Piercing Weapon . | . . . Special Melee Weapon . | . . . Unidentified Prototypes . | . . . Parts Lost 4 | . 4 . Power 1 | . 1 . Propulsion 2 | . 2 . Utility . | . . . Weapon 1 | . 1 . Highest Loss Streak 4 | . 4 . To Critical Strikes 2 | . 2 . Average Slot Usage (%) 81 | . 77 85 Engine 12 | . 10 14 Treads 19 | . 6 28 Leg 7 | . 18 . Storage 14 | . 14 14 Ballistic Gun 27 | . 25 28 Naked Turns . | . . . Heaviest Build 13 | 13 13 11 Greatest Support 40 | 20 40 40 Greatest Overweight (x) 2 | . 2 . Average Overweight (x) . | . . . Largest Inventory Capacity 8 | . 8 8 Average Capacity 8 | . 8 8 Most Carried 6 | . 6 6 Average Carried 5 | . 5 5 Final Capacity 8 | 8 8 8 Final Carried 6 | 6 4 6 Class Distribution -------------------- 100% | Mutant Dominant Class ---------------- Mutant | -10/Materials Mutant | -10/Mines Resources | -11 -10 -10 ----------- Run | Scr Mat Min Matter Collected 403 | 188 93 122 Remotely . | . . . Salvage Created 480 | . 263 217 Parts 34 | . 18 16 Haulers Intercepted . | . . . Recyclers Shooed 1 | . 1 . Parts Field Recycled . | . . . Retrieved Matter . | . . . Parts Self-Destructed . | . . . Prevented . | . . . Kills | -11 -10 -10 ------- Run | Scr Mat Min Combat Hostiles Destroyed 19 | . 10 9 Guns 19 | . 10 9 Classes Destroyed 3 | . 2 1 Swarmer 11 | . 6 5 Grunt 7 | . 4 3 Assembled 1 | . . 1 Best Kill Streak 3 | . 3 3 Combat Bots Only 3 | . 3 3 Max Kills in Single Turn 1 | . 1 1 Gunslinging . | . . . Exploded . | . . . Melee . | . . . Uniques/NPCs Destroyed . | . . . Combat | -11 -10 -10 -------- Run | Scr Mat Min Damage Taken 1074 | . 634 440 Core 251 | . 168 83 Absorbed by Shields . | . . . Core Remaining (%) 100 | 100 . . Volleys Fired 66 | . 37 29 Largest 2 | . 2 2 Hottest 60 | . 60 40 Shots Fired 129 | . 71 58 Gun 129 | . 71 58 Cannon . | . . . Launcher . | . . . Special . | . . . Kinetic 127 | . 69 58 Thermal . | . . . Explosive . | . . . Electromagnetic 2 | . 2 . Robot Hit Streak 16 | . 7 16 Robot Miss Streak 11 | . 11 4 Penetration Max . | . . . Secondary Targets 7 | . 4 3 Max Gunslinging Chain 1 | . 1 1 Shots Hit Robots 74 | . 35 39 Core Hits 33 | . 18 15 Critical Kills . | . . . Critical Parts Destroyed . | . . . Critical Strikes . | . . . Melee Attacks . | . . . Impact . | . . . Slashing . | . . . Piercing . | . . . Sneak Attacks . | . . . Combat Hostiles . | . . . Follow-up Attacks . | . . . Damage Inflicted 724 | . 297 427 Guns 715 | . 297 418 Cannons . | . . . Explosions . | . . . Melee . | . . . Ramming 9 | . . 9 Kinetic 702 | . 284 418 Thermal . | . . . Explosive . | . . . Electromagnetic 13 | . 13 . Impact . | . . . Slashing . | . . . Piercing . | . . . Highest Corruption . | . . . Average Corruption . | . . . Corruption Purged . | . . . Corruption Blocked . | . . . Overload Shots . | . . . Overflow Damage . | . . . Projectiles . | . . . Explosions . | . . . Melee . | . . . Knockbacks . | . . . Impact . | . . . Kinetic . | . . . Secondary . | . . . Self-Inflicted Damage . | . . . Shots . | . . . Rammed 1 | . . 1 Targets Rammed 1 | . . 1 Kicked . | . . . Crushed . | . . . Highest Temperature 40 | . 40 9 Average Temperature 14 | . 15 8 Received Heat Transfer 213 | . 156 57 Siege Activations . | . . . Robots Corrupted . | . . . Combat Hostiles . | . . . Parts Fried . | . . . Impact Corruptions . | . . . Robots Melted . | . . . Combat Hostiles . | . . . Parts Melted . | . . . Heat Transferred . | . . . Parts Sabotaged . | . . . Parts Stolen . | . . . Parts Stripped . | . . . Power Chain Reactions . | . . . Missiles Intercepted . | . . . Alert | -11 -10 -10 ------- Run | Scr Mat Min Peak Influence 276 | . 223 276 Initial 86 | . . 86 Average 139 | . 115 157 Maximum Alert Level 1 | . 1 1 Low Security (%) 76 | . 72 79 Level 1 23 | . 27 20 Level 2 . | . . . Level 3 . | . . . Level 4 . | . . . Level 5 . | . . . High Security . | . . . Max Security . | . . . Squads Dispatched 1 | . 1 . Investigation . | . . . Extermination . | . . . Reinforcement 1 | . 1 . Assault . | . . . Garrison . | . . . Intercept . | . . . Searches Triggered . | . . . Construction Impeded . | . . . Haulers Reinforced . | . . . Active Scanning Responses . | . . . Cargo Convoy Interrupts . | . . . Stealth | -11 -10 -10 --------- Run | Scr Mat Min Distress Signals 2 | . 1 1 Communications Jammed . | . . . Distress Signals . | . . . Times Spotted 27 | . 14 13 Peak Tracking Total 5 | . 5 4 Tactical Retreats 1 | . . 1 Traps | -11 -10 -10 ------- Run | Scr Mat Min Traps Triggered . | . . . Indirectly . | . . . Trap Hack Attempts . | . . . Triggered . | . . . Disarmed . | . . . Reprogrammed . | . . . Reused . | . . . Traps Extracted . | . . . Installed . | . . . Triggered . | . . . Machines | -11 -10 -10 ---------- Run | Scr Mat Min Machines Disabled . | . . . Max in Single Turn . | . . . Machines Sabotaged . | . . . Garrisons Compromised . | . . . Overloaded Fab Kills . | . . . Hacking | -11 -10 -10 --------- Run | Scr Mat Min Machines Accessed 2 | . 2 . Terminals 2 | . 2 . Fabricators . | . . . Repair Stations . | . . . Recycling Units . | . . . Scanalyzers . | . . . Garrison Access . | . . . Total Hacks 2 | . 2 . Successful 1 | . 1 . Failed 1 | . 1 . Catastrophic 1 | . 1 . Database Lockouts . | . . . Manual 2 | . 2 . Terminals 2 | . 2 . Fabricators . | . . . Repair Stations . | . . . Recycling Units . | . . . Scanalyzers . | . . . Garrison Access . | . . . Terminal Hacks 1 | . 1 . Branch Access Points 1 | . 1 . Fabricator Hacks . | . . . Repair Station Hacks . | . . . Recycling Unit Hacks . | . . . Scanalyzer . | . . . Garrison Access Hacks . | . . . Unauthorized Hacks . | . . . Terminals . | . . . Fabricators . | . . . Repair Stations . | . . . Recycling Units . | . . . Scanalyzers . | . . . Garrison Access . | . . . Data Cores Recovered . | . . . Used . | . . . Hacking Detections 1 | . 1 . Full Trace Events . | . . . Feedback Events . | . . . Feedback Blocked . | . . . Robot Schematics Acquired . | . . . Robots Built . | . . . Authchips . | . . . Time . | . . . Total Robot Build Rating . | . . . Part Schematics Acquired . | . . . Parts Built . | . . . Authchips . | . . . Time . | . . . Total Part Build Rating . | . . . Parts Repaired . | . . . Time . | . . . Parts Recycled . | . . . Recycled Matter . | . . . Retrieved Matter . | . . . Retrieved Components . | . . . Parts Scanalyzed . | . . . Part Schematics Acquired . | . . . Parts Damaged . | . . . Bothacking | -11 -10 -10 ------------ Run | Scr Mat Min Used RIF Installer . | . . . Robots Hacked . | . . . Non-combat . | . . . Combat . | . . . Robot Hacks Applied . | . . . Relay Couplers Released . | . . . Fabnet Peak Effective % . | . . . Robots Rewired . | . . . Allies Hacked . | . . . Hacks Repelled . | . . . Allies | -11 -10 -10 -------- Run | Scr Mat Min Total Allies . | . . . Largest Group . | . . . Highest-Rated Group . | . . . Highest-Rated Ally . | . . . Total Orders . | . . . Ally Attacks . | . . . Total Damage . | . . . Kills . | . . . Allies Corrupted . | . . . Allies Melted . | . . . Intel | -11 -10 -10 ------- Run | Scr Mat Min Robot Analysis Total . | . . . Derelict Logs Recovered 1 | . . 1 Drone Launches . | . . . Drone Recoveries . | . . . Exploration | -11 -10 -10 ------------- Run | Scr Mat Min Turns Passed 706 | . 294 412 Spaces Moved 284 | 1 142 141 Core 5 | . 5 . Treads 182 | . 41 141 Legs 97 | 1 96 . Wheels . | . . . Hover . | . . . Flight . | . . . Fastest Speed 120 | 120 120 160 Average Speed 146 | 120 132 160 Slowest Speed 160 | 120 160 160 Overloaded Moves . | . . . Propulsion Burnouts . | . . . Robots Hopped . | . . . Cave-ins Triggered . | . . . Exploration Rate (%) 25 | 2 35 39 Regions Visited 2 Branch Regions 1 Pre-discovered Areas 1 | . . 1 Known Exits Taken 1 | . 1 . Unknown Exits Taken 1 | 1 . . Scrap Searched . | . . . Spaces Dug . | . . . Terrain Destroyed . | . . . Melee . | . . . Projectile . | . . . AOE . | . . . Terrain Rammed . | . . . Walls Destroyed . | . . . Machines Disabled . | . . . Actions | -11 -10 -10 --------- Run | Scr Mat Min Total 463 | . 188 275 Wait 107 | . 5 102 Move 282 | . 141 141 Hop . | . . . Pick Up . | . . . Fast Attach 2 | . 2 . Attach 2 | . 2 . Detach . | . . . Swap 3 | . 1 2 Drop . | . . . Fire 66 | . 37 29 Melee . | . . . Ram . | . . . Kick . | . . . Crush 1 | . . 1 Escape Stasis . | . . . Rewire . | . . . Trap . | . . . Miscellaneous . | . . . Route ------- -11/Scrapyard -10/Materials (discovered 2 exits: *Min x2) -10/Mines History --------- Turn | Location | Event 1 | -11/Scrapyard | Discovered new exit (range 0) 1 | -11/Scrapyard | Entered Materials 88 | -10/Materials | Identified exit to Mines 202 | -10/Materials | Core integrity fell below 50% 239 | -10/Materials | Lost 4 parts (1p2n1w) 295 | -10/Materials | Entered Mines 305 | -10/Mines | Build established: Mutant 417 | -10/Mines | Learned location of Zion (-7) 477 | -10/Mines | Excavation squad dispatched 477 | -10/Mines | A large section of the Mines collapsed 609 | -10/Mines | Core integrity fell below 20% 707 | -10/Mines | Destroyed by S-10 Pest with Light Assault Rifle Last Messages --------------- 00595_ Switching to secondary target: G-47 Trooper. 00595_ U-05 Engineer lays Concrete. 00601_ Destroyed Heat Sink. 00604_ G-34 Mercenary destroyed. 00604_ Switching to secondary target: G-47 Trooper. 00608_ T-07 Excavator is excavating. 00612_ G-47 Trooper destroyed. 00613_ T-07 Excavator is excavating. 00615_ Acquired 38 matter. 00615_ T-07 Excavator is excavating. 00616_ U-05 Engineer lays Concrete. 00617_ T-07 Excavator is excavating. 00618_ Acquired 39 matter. 00619_ U-05 Engineer lays Concrete. 00619_ T-07 Excavator is excavating. 00621_ U-05 Engineer lays Concrete. 00624_ T-07 Excavator is excavating. 00647_ Acquired 9 matter. 00666_ Acquired 17 matter. 00693_ S-10 Pest destroyed. Map ----- +----------------------------------------------------+ | | | | | | | | | | | | | | | ?????????????????????????????????? | | ?????????????????????????????????? | | ?????????????????????????????????? | | ???????????????????????????####??? | | ??????????????????????????## ##?? | | ?????????????????????????## ##? | | ????????????????????????## ## | | ???????????????????????## """" | | ?????????????##???????## """" # | | ???????????## ???????# """" # | | ??????????? ???????# ## | | ???????????# #???????## ### ### | | ???????????# #????????####?# # | | ???????????# #?????????????# # | | ???????????# $#?????????????### # | | ???????????# #?????????####??# # | | ???????????# #????????# ##?# # | | ?????# ##### ###????## #?# # | | ?????#*%=@ss ###?## #?# # | | ?????####### ### #?# # | | ???????????# #??# ## | | ???????????# #????# # | | ???????????# ## """ ##????# ## | | ???????????# #### """ ##????## # | | ???????????# #??# """ #?????## | | ???????????## ??## #??????## | | ????????????# ???##### #???????? | | ????????????# ???????# #???????? | | ????????????## ??????# ###?????? | | ??????????????# ??????# #?????? | | ??????????????? ??????#### #?????? | | ??????????????? ?????????# #?????# | | ??????????????? ????????# ####### | | ???????????????? ????????# | | ?????????????????????????#### | | ????????????????????????????## | | ?????????????????????????????## | | ??????????????????????????????## | | ???????????????????????????????# | | ???????????????????????????????# | | ??????????????????????????????? | | ??????????????????????????????? | | ??????????????????????????????## | +----------------------------------------------------+ Best States ------------- Heat Dissipation 25 Energy Generation 10 Energy Capacity 250 Matter Stores 300 Matter Capacity 300 Sight Range 16 Terrain Scan Density 10 Evasion (%) 55 Recoil Reduction 2 Item Schematics ----------------- None Robot Schematics ------------------ None Fabricated ------------ Nothing Alien Tech Used ----------------- None Achievements -------------- None Challenges ------------ None Game ------ Seed CoolingSigixReplicator Manual? 0 Play Time 00:07:21 Cumulative 118.0 hours Start 2022.11.08 @ 22:41:09 End 2022.11.08 @ 23:40:15 Sessions 1 Manual Loads 0 Difficulty Rogue Special Mode None Game No. 129 Rogue 129 Adventurer 0 Explorer 0 Win Type - Total 0 Types 0/0/0/0/0/0/0/0/0 Lore% 53 Gallery% 67 Achievement% 51 Wizard Run 0 Options --------- ASCII 0 Keyboard 0 Movement Mouse Keybinds 0 Fullscreen 1 Font 18/SmallcapsGlow Map View 76x50 Tactical HUD 1 Map Filters NONE Filters NONE Steam 1 RUN: 72d7ac6f-2413-4f75-8b35-ea2a0973630c